Workbook

Sheet Sheet1
A1: WEIGHT PERCENT | E1: Raw Data NORMALIZED to sum to 100%
A3: WELL NAME | B3: Berea Project - Columbia Gas 1 1691
A4: JOB # | B4: 15-0601
A5: SAMPLE ID | B5: 1 | C5: 2 | D5: 3 | E5: 4 | F5: 5 | G5: 6 | H5: 7 | I5: 8
A6: SAMPLE DEPTH | B6: 2170-2180 | C6: 2180-2190 | D6: 2190-2200 | E6: 2200-2210 | F6: 2340-2350 | G6: 2350-2360 | H6: 2360-2370 | I6: 2370-2380
A8: NON-CLAY FRACTION
A9: Quartz | B9: 25.62441614 | C9: 25.65208667 | D9: 24.33194489 | E9: 24.74630759 | F9: 34.47193902 | G9: 39.12185517 | H9: 42.16720511 | I9: 39.92360232
A10: K-Feldspar | B10: 1.000453872 | C10: 0.794986152 | D10: 0.8984034653 | E10: 0.4104141386 | F10: 0.3138946744 | G10: 0.2229389185 | H10: 0.209076239 | I10: 0.6663711479
A11: Plagioclase | B11: 2.694084353 | C11: 3.132269614 | D11: 3.23493074 | E11: 3.286300427 | F11: 4.905951912 | G11: 5.945076015 | H11: 6.893571564 | I11: 6.569960332
A12: Organic Carbon (TOC) | B12: 1.3 | C12: 1.9 | D12: 2.02 | E12: 6.38 | F12: 3.67 | G12: 3.73 | H12: 4.1 | I12: 4.63
A13: Apatite | B13: 0.3392857093 | C13: 0.2174704102 | D13: 0 | E13: 1.072514334 | F13: 0 | G13: 0.08028274737 | H13: 0 | I13: 0
A14: Pyrite | B14: 2.349889862 | C14: 3.258229431 | D14: 3.292775811 | E14: 5.544241931 | F14: 1.787714173 | G14: 1.714542376 | H14: 1.490632125 | I14: 1.888300121
A15: Marcasite | B15: 0 | C15: 0 | D15: 0 | E15: 0 | F15: 0 | G15: 0 | H15: 0 | I15: 0
A16: Calcite | B16: 1.319319123 | C16: 0 | D16: 0 | E16: 0 | F16: 0 | G16: 0 | H16: 0 | I16: 0
A17: Dolomite | B17: 0 | C17: 0 | D17: 0 | E17: 0 | F17: 0 | G17: 0 | H17: 0.414364245 | I17: 0
A18: Siderite | B18: 0 | C18: 0.5490595322 | D18: 0.2305622587 | E18: 0.399810544 | F18: 0.7740491165 | G18: 0 | H18: 0 | I18: 0
A19: Gypsum | B19: 0.3977141583 | C19: 0.3422353616 | D19: 0.2716033312 | E19: 0 | F19: 0.2629399974 | G19: 0 | H19: 0 | I19: 0
A20: Anatase | B20: 0.7418008472 | C20: 0.6293800307 | D20: 0.753623256 | E20: 0.422879686 | F20: 0.6288147747 | G20: 0.4097901864 | H20: 0.3670438915 | I20: 0.4282926318
A21: TOTAL | B21: =SUM(B9:B20) -> 35.76696406 | C21: =SUM(C9:C20) -> 36.47571721 | D21: =SUM(D9:D20) -> 35.03384376 | E21: =SUM(E9:E20) -> 42.26246865 | F21: =SUM(F9:F20) -> 46.81530367 | G21: =SUM(G9:G20) -> 51.22448541 | H21: =SUM(H9:H20) -> 55.64189318 | I21: =SUM(I9:I20) -> 54.10652656
A23: CLAY FRACTION
A24: Mixed-Layer ILLITE/SMECTITE (Includes R3) | B24: 8.836993798 | C24: 9.614310298 | D24: 9.746694188 | E24: 11.46157036 | F24: 5.428227375 | G24: 5.727847395 | H24: 7.449191951 | I24: 6.249649332
A25: Illite+Mica | B25: 48.53973087 | C25: 46.84415382 | D25: 48.31573201 | E25: 42.44029203 | F25: 39.14780782 | G25: 39.08122913 | H25: 32.7390176 | I25: 35.55626674
A26: Chlorite | B26: 3.248042112 | C26: 2.465864938 | D26: 2.287241279 | E26: 2.064223315 | F26: 3.502816744 | G26: 2.078353374 | H26: 2.107794138 | I26: 2.262670436
A27: Kaolinite | B27: 3.608269155 | C27: 4.599953736 | D27: 4.616488772 | E27: 1.771445643 | F27: 5.105844389 | G27: 1.888084689 | H27: 2.062103131 | I27: 1.824886935
A28: TOTAL | B28: =SUM(B24:B27) -> 64.23303594 | C28: =SUM(C24:C27) -> 63.52428279 | D28: =SUM(D24:D27) -> 64.96615624 | E28: =SUM(E24:E27) -> 57.73753135 | F28: =SUM(F24:F27) -> 53.18469633 | G28: =SUM(G24:G27) -> 48.77551459 | H28: =SUM(H24:H27) -> 44.35810682 | I28: =SUM(I24:I27) -> 45.89347344
A30: GRAND TOTAL | B30: =B28+B21 -> 100 | C30: =C28+C21 -> 100 | D30: =D28+D21 -> 100 | E30: =E28+E21 -> 100 | F30: =F28+F21 -> 100 | G30: =G28+G21 -> 100 | H30: =H28+H21 -> 100 | I30: =I28+I21 -> 100
A32: % Expandable Layers in I/S | B32: 19.05613409 | C32: 18.88569286 | D32: 21.40822306 | E32: 15.17007404 | F32: 12.03395541 | G32: 20.21513445 | H32: 21.98772324 | I32: 21.88545851
A33: % I/S to Illite in <1.0um Fraction | B33: 19.76010508 | C33: 19.96576066 | D33: 19.17776318 | E33: 23.2581015 | F33: 15.41530841 | G33: 14.74611541 | H33: 21.35592873 | I33: 17.7461065
A34: % Expandable I/S Layers in sample | B34: 1.706169592 | C34: 1.85089614 | D34: 2.129612199 | E34: 1.857219302 | F34: 0.6781173695 | G34: 1.202754806 | H34: 1.707932962 | I34: 1.434166312
A37: Comments
